{"text_format":"1","workbook":"xlsx","n_sheets":2,"sheets":["Approved Div Splits","Approved Running Order"],"not_rendered":{"charts":0,"images":0,"macros":1,"external_links":2,"defined_names":29,"comments":0,"pivot_tables":0},"unopened":[],"bounds":{"document_bytes":16777216,"sheet_cells":100000,"rows_first":2000,"rows_last":500,"rows_between":2000,"halvings":0,"cell_chars":16384,"cell_head_chars":4096},"cells_cut":0,"cells_raw":0,"read":"whole","date_system":"1900"}

{"sheet":"Approved Div Splits","index":0,"n_rows":90,"n_cols":107,"rows_kept":90,"cut":false,"hidden":false,"merged":[]}
["Club","Team Name","Division","Seed Time","Declared Time","TIMES","Time Between Divs",null,null,null,null,null,null,null,null,null,null,null,null,null,null,null,null,null,null,null,null,{"$f":"IF(A2=\"\",\"\",BZ2)","v":"Team 1"},{"$f":"IF(B2=\"\",\"\",B2)","v":"Norwest Thunderdogs 1"},null,{"$f":"INDEX(AB1:AB90,MATCH(TeamNameCell,'Approved Div Splits'!AC1:AC90,0))","v":{"$error":"#N/A"}},null,null,null,null,{"$f":"IF(B2=\"\",\"\",'[1]Race Meeting Information'!$B$3 &\" - \" & B2)","v":"CAF1233 - Norwest Thunderdogs 1"},null,null,null,null,null,null,null,null,null,null,null,null,null,null,null,null,null,null,null,null,null,null,null,null,null,null,null,null,null,null,null,null,null,null,null,null,null,null,null,null,null,null,null,null,null,null,null,null,null,null,null,null,null,null,null,null,null,null,null,null,null,null,"Time AX Divs",null,"Format","Racing","Races per team","Heats per team","Races per div",null,"Races for Day"]
["Norwest Flyball Club Inc.","Norwest Thunderdogs 1",null,16.41,null,16.41,null,16.41,"Team 1","Norwest Thunderdogs 1",null,null,null,"",null,null,null,null,null,null,null,null,null,null,null,null,null,{"$error":"#REF!"},"Thunderdog Stormchasers",null,null,null,null,null,null,"CAF1233 - Thunderdog Stormchasers",null,null,null,null,null,null,null,null,null,null,null,null,null,null,null,null,null,null,null,null,null,null,null,null,null,null,null,null,null,null,null,null,null,null,null,null,null,null,null,null,null,"Team 1",null,null,null,null,null,null,null,null,null,null,null,null,null,null,0,null,0,null,null,null,null,null,null,null,null,null,null,null,57]
["South Coast Tsunami Flyball","Tsunami Bar Crushers","Div 1",17.873000000000001,null,17.873000000000001,null,17.873000000000001,"Team 3","Tsunami Bar Crushers",null,null,null,null,null,null,null,null,null,null,null,null,null,null,null,null,null,"Team 4","Norwest Thunderdogs 4",null,null,null,null,null,null,"CAF1233 - Norwest Thunderdogs 4",null,null,null,null,null,null,null,null,null,null,null,null,null,null,null,null,null,null,null,null,null,null,null,null,null,null,null,null,null,null,null,null,null,null,null,null,null,null,null,null,null,"Team 3",null,null,null,null,null,null,null,null,null,null,null,null,null,null,null,null,null,null,null,null,3.1950000000000003,null,"Handicap","2 x Best of 5",6,"18-30",12]
["Norwest Flyball Club Inc.","Norwest Thunderdogs 4",null,null,18.2,18.2,null,18.538,"Team 4","Norwest Thunderdogs 4",null,null,null,null,null,null,null,null,null,null,null,null,null,null,null,null,null,{"$error":"#REF!"},"MAD Flyers",null,null,null,null,null,null,"CAF1233 - MAD Flyers",null,null,null,null,null,null,null,null,null,null,null,null,null,null,null,null,null,null,null,null,null,null,null,null,null,null,null,null,null,null,null,null,null,null,null,null,null,null,null,null,null,"Team 4"]
["Sydney Scallywags Flyball INC","Scallywag Scoundrels",null,19.605,null,19.605,null,19.605,"Team 7","Scallywag Scoundrels",null,null,null,null,null,null,null,null,null,null,null,null,null,null,null,null,null,{"$error":"#REF!"},"Crossfire - SthX",null,null,null,null,null,null,"CAF1233 - Crossfire - SthX",null,null,null,null,null,null,null,null,null,null,null,null,null,null,null,null,null,null,null,null,null,null,null,null,null,null,null,null,null,null,null,null,null,null,null,null,null,null,null,null,null,"Team 7"]
["Sydneysiders Flyball Club","Sydneysiders",null,null,22,22,null,{"$error":"#N/A"},"Team 10","Sydneysiders",null,null,null,null,null,null,null,null,null,null,null,null,null,null,null,null,null,"Team 11","Norwest Thunderdogs 8",null,null,null,null,null,null,"CAF1233 - Norwest Thunderdogs 8",null,null,null,null,null,null,null,null,null,null,null,null,null,null,null,null,null,null,null,null,null,null,null,null,null,null,null,null,null,null,null,null,null,null,null,null,null,null,null,null,null,"Team 10"]
["Norwest Flyball Club Inc.","Norwest Thunderdogs 8","Div 2",null,22.4,22.4,2.3949999999999996,20.172999999999998,"Team 11","Norwest Thunderdogs 8",null,null,null,null,null,null,null,null,null,null,null,null,null,null,null,null,null,{"$error":"#REF!"},"Open Ocean",null,null,null,null,null,null,"CAF1233 - Open Ocean",null,null,null,null,null,null,null,null,null,null,null,null,null,null,null,null,null,null,null,null,null,null,null,null,null,null,null,null,null,null,null,null,null,null,null,null,null,null,null,null,null,"Team 11",null,null,null,null,null,null,null,null,null,null,null,null,null,null,null,null,null,null,null,null,2.6999999999999993,null,"Handicap","2 x Best of 5",6,"18-30",12]
["Flyball Friends","Rocky Spuds",null,24.178000000000001,null,24.178000000000001,null,24.178000000000001,"Team 14","Rocky Spuds",null,null,null,null,null,null,null,null,null,null,null,null,null,null,null,null,null,"Team 15","MAD Dash",null,null,null,null,null,null,"CAF1233 - MAD Dash",null,null,null,null,null,null,null,null,null,null,null,null,null,null,null,null,null,null,null,null,null,null,null,null,null,null,null,null,null,null,null,null,null,null,null,null,null,null,null,null,null,"Team 14"]
["Manly and District Kennel and Dog Training Club","MAD Dash",null,null,24.7,24.7,null,23.126999999999999,"Team 15","MAD Dash",null,null,null,null,null,null,null,null,null,null,null,null,null,null,null,null,null,"Team 16","Havoc Hounds",null,null,null,null,null,null,"CAF1233 - Havoc Hounds",null,null,null,null,null,null,null,null,null,null,null,null,null,null,null,null,null,null,null,null,null,null,null,null,null,null,null,null,null,null,null,null,null,null,null,null,null,null,null,null,null,"Team 15"]
["St George Flyball Club","Havoc Hounds",null,null,25.5,25.5,null,{"$error":"#N/A"},"Team 16","Havoc Hounds",null,null,null,null,null,null,null,null,null,null,null,null,null,null,null,null,null,"Team 17","Fast & Furious",null,null,null,null,null,null,"CAF1233 - Fast & Furious",null,null,null,null,null,null,null,null,null,null,null,null,null,null,null,null,null,null,null,null,null,null,null,null,null,null,null,null,null,null,null,null,null,null,null,null,null,null,null,null,null,"Team 16"]
["Wollongong Wonder Woofs Flyball Inc","Wiggly Woofers","Div 3",27.564,null,27.564,3,27.564,"Team 18","Wiggly Woofers",null,null,null,null,null,null,null,null,null,null,null,null,null,null,null,null,null,"Team 19","Munchkins",null,null,null,null,null,null,"CAF1233 - Munchkins",null,null,null,null,null,null,null,null,null,null,null,null,null,null,null,null,null,null,null,null,null,null,null,null,null,null,null,null,null,null,null,null,null,null,null,null,null,null,null,null,null,"Team 18",null,null,null,null,null,null,null,null,null,null,null,null,null,null,null,null,null,null,null,null,3,null,"Handicap","3 x Best of 5",6,"18-30",9]
["Sydneysiders Flyball Club","Munchkins",null,null,28.5,28.5,null,{"$error":"#N/A"},"Team 19","Munchkins",null,null,null,null,null,null,null,null,null,null,null,null,null,null,null,null,null,{"$error":"#REF!"},{"$error":"#REF!"},null,null,null,null,null,null,{"$error":"#REF!"},null,null,null,null,null,null,null,null,null,null,null,null,null,null,null,null,null,null,null,null,null,null,null,null,null,null,null,null,null,null,null,null,null,null,null,null,null,null,null,null,null,"Team 19"]
["OPEN 1","Thunderdog Stormchasers",null,null,17.2,17.2,null,{"$error":"#REF!"},"Team 23","Thunderdog Stormchasers",null,null,null,null,null,null,null,null,null,null,null,null,null,null,null,null,null,{"$error":"#REF!"},{"$error":"#REF!"},null,null,null,null,null,null,{"$error":"#REF!"},null,null,null,null,null,null,null,null,null,null,null,null,null,null,null,null,null,null,null,null,null,null,null,null,null,null,null,null,null,null,null,null,null,null,null,null,null,null,null,null,null,"Team 23"]
["OPEN 1","MAD Flyers",null,null,18.350000000000001,18.350000000000001,null,{"$error":"#REF!"},"Team 24","MAD Flyers",null,null,null,null,null,null,null,null,null,null,null,null,null,null,null,null,null,{"$error":"#REF!"},{"$error":"#REF!"},null,null,null,null,null,null,{"$error":"#REF!"},null,null,null,null,null,null,null,null,null,null,null,null,null,null,null,null,null,null,null,null,null,null,null,null,null,null,null,null,null,null,null,null,null,null,null,null,null,null,null,null,null,"Team 24",null,null,null,null,null,null,null,null,null,null,null,null,null,null,null,null,null,null,null,null,null,null,"Handicap","2 x Best of 5",6,"18-30",12]
["OPEN 1","Thunderdog Tornado","Open 1",null,19.399999999999999,19.399999999999999,null,{"$error":"#REF!"},"Team 25","Thunderdog Tornado",null,null,null,null,null,null,null,null,null,null,null,null,null,null,null,null,null,{"$error":"#REF!"},{"$error":"#REF!"},null,null,null,null,null,null,{"$error":"#REF!"},null,null,null,null,null,null,null,null,null,null,null,null,null,null,null,null,null,null,null,null,null,null,null,null,null,null,null,null,null,null,null,null,null,null,null,null,null,null,null,null,null,"Team 25",null,null,null,null,null,null,null,null,null,null,null,null,null,null,null,null,null,null,null,null,3.3000000000000007]
["OPEN 1","Crossfire - SthX",null,null,20.5,20.5,null,{"$error":"#REF!"},"Team 26","Crossfire - SthX",null,null,null,null,null,null,null,null,null,null,null,null,null,null,null,null,null,{"$error":"#REF!"},{"$error":"#REF!"},null,null,null,null,null,null,{"$error":"#REF!"},null,null,null,null,null,null,null,null,null,null,null,null,null,null,null,null,null,null,null,null,null,null,null,null,null,null,null,null,null,null,null,null,null,null,null,null,null,null,null,null,null,"Team 26"]
["OPEN 2","Scallywag Terrors",null,null,21.5,21.5,null,{"$error":"#REF!"},"Team 28","Scallywag Terrors",null,null,null,null,null,null,null,null,null,null,null,null,null,null,null,null,null,{"$error":"#REF!"},{"$error":"#REF!"},null,null,null,null,null,null,{"$error":"#REF!"},null,null,null,null,null,null,null,null,null,null,null,null,null,null,null,null,null,null,null,null,null,null,null,null,null,null,null,null,null,null,null,null,null,null,null,null,null,null,null,null,null,"Team 28"]
["OPEN 2","Open Ocean",null,null,22.5,22.5,1,{"$error":"#REF!"},"Team 29","Open Ocean",null,null,null,null,null,null,null,null,null,null,null,null,null,null,null,null,null,{"$error":"#REF!"},{"$error":"#REF!"},null,null,null,null,null,null,{"$error":"#REF!"},null,null,null,null,null,null,null,null,null,null,null,null,null,null,null,null,null,null,null,null,null,null,null,null,null,null,null,null,null,null,null,null,null,null,null,null,null,null,null,null,null,"Team 29",null,null,null,null,null,null,null,null,null,null,null,null,null,null,null,null,null,null,null,null,5.5,null,"Handicap","2 x Best of 5",6,"18-30",12]
["OPEN 2","Crate Escapers","Open 2",null,23.5,23.5,null,{"$error":"#REF!"},"Team 30","Crate Escapers",null,null,null,null,null,null,null,null,null,null,null,null,null,null,null,null,null,{"$error":"#REF!"},{"$error":"#REF!"},null,null,null,null,null,null,{"$error":"#REF!"},null,null,null,null,null,null,null,null,null,null,null,null,null,null,null,null,null,null,null,null,null,null,null,null,null,null,null,null,null,null,null,null,null,null,null,null,null,null,null,null,null,"Team 30"]
["OPEN 2","Fast & Furious",null,null,27,27,null,{"$error":"#N/A"},"Team 17","Fast & Furious",null,null,null,null,null,null,null,null,null,null,null,null,null,null,null,null,null,"Team 18","Wiggly Woofers",null,null,null,null,null,null,"CAF1233 - Wiggly Woofers",null,null,null,null,null,null,null,null,null,null,null,null,null,null,null,null,null,null,null,null,null,null,null,null,null,null,null,null,null,null,null,null,null,null,null,null,null,null,null,null,null,"Team 17"]
[null,null,null,null,null,null,null,{"$f":"IF(A21=\"\",\"\",(VLOOKUP(B21,'[1]AFA Seed Times'!$B$3:$C$600,2,0)))","v":""},"Team 32",{"$f":"IF(B21=\"\",\"\",B21)","v":""},null,null,null,null,null,null,null,null,null,null,null,null,null,null,null,null,null,{"$f":"IF(A22=\"\",\"\",BZ22)","v":""},{"$f":"IF(B22=\"\",\"\",B22)","v":""},null,null,null,null,null,null,{"$f":"IF(B22=\"\",\"\",'[1]Race Meeting Information'!$B$3 &\" - \" & B22)","v":""},null,null,null,null,null,null,null,null,null,null,null,null,null,null,null,null,null,null,null,null,null,null,null,null,null,null,null,null,null,null,null,null,null,null,null,null,null,null,null,null,null,"Team 32"]
[null,null,null,null,null,null,null,{"$f":"IF(A22=\"\",\"\",(VLOOKUP(B22,'[1]AFA Seed Times'!$B$3:$C$600,2,0)))","v":""},"Team 33","",null,null,null,null,null,null,null,null,null,null,null,null,null,null,null,null,null,"","",null,null,null,null,null,null,{"$f":"IF(B23=\"\",\"\",'[1]Race Meeting Information'!$B$3 &\" - \" & B23)","v":""},null,null,null,null,null,null,null,null,null,null,null,null,null,null,null,null,null,null,null,null,null,null,null,null,null,null,null,null,null,null,null,null,null,null,null,null,null,null,null,null,null,"Team 33"]
[null,null,null,null,null,null,null,{"$f":"IF(A23=\"\",\"\",(VLOOKUP(B23,'[1]AFA Seed Times'!$B$3:$C$600,2,0)))","v":""},"Team 34","",null,null,null,null,null,null,null,null,null,null,null,null,null,null,null,null,null,"","",null,null,null,null,null,null,{"$f":"IF(B24=\"\",\"\",'[1]Race Meeting Information'!$B$3 &\" - \" & B24)","v":""},null,null,null,null,null,null,null,null,null,null,null,null,null,null,null,null,null,null,null,null,null,null,null,null,null,null,null,null,null,null,null,null,null,null,null,null,null,null,null,null,null,"Team 34"]
[null,null,null,null,null,null,null,{"$f":"IF(A24=\"\",\"\",(VLOOKUP(B24,'[1]AFA Seed Times'!$B$3:$C$600,2,0)))","v":""},"Team 35","",null,null,null,null,null,null,null,null,null,null,null,null,null,null,null,null,null,"","",null,null,null,null,null,null,{"$f":"IF(B25=\"\",\"\",'[1]Race Meeting Information'!$B$3 &\" - \" & B25)","v":""},null,null,null,null,null,null,null,null,null,null,null,null,null,null,null,null,null,null,null,null,null,null,null,null,null,null,null,null,null,null,null,null,null,null,null,null,null,null,null,null,null,"Team 35"]
[null,null,null,null,null,null,null,{"$f":"IF(A25=\"\",\"\",(VLOOKUP(B25,'[1]AFA Seed Times'!$B$3:$C$600,2,0)))","v":""},"Team 36","",null,null,null,null,null,null,null,null,null,null,null,null,null,null,null,null,null,"","",null,null,null,null,null,null,{"$f":"IF(B26=\"\",\"\",'[1]Race Meeting Information'!$B$3 &\" - \" & B26)","v":""},null,null,null,null,null,null,null,null,null,null,null,null,null,null,null,null,null,null,null,null,null,null,null,null,null,null,null,null,null,null,null,null,null,null,null,null,null,null,null,null,null,"Team 36"]
[null,null,null,null,null,null,null,{"$f":"IF(A26=\"\",\"\",(VLOOKUP(B26,'[1]AFA Seed Times'!$B$3:$C$600,2,0)))","v":""},"Team 37","",null,null,null,null,null,null,null,null,null,null,null,null,null,null,null,null,null,"","",null,null,null,null,null,null,{"$f":"IF(B27=\"\",\"\",'[1]Race Meeting Information'!$B$3 &\" - \" & B27)","v":""},null,null,null,null,null,null,null,null,null,null,null,null,null,null,null,null,null,null,null,null,null,null,null,null,null,null,null,null,null,null,null,null,null,null,null,null,null,null,null,null,null,"Team 37"]
[null,null,null,null,null,null,null,{"$f":"IF(A27=\"\",\"\",(VLOOKUP(B27,'[1]AFA Seed Times'!$B$3:$C$600,2,0)))","v":""},"Team 38","",null,null,null,null,null,null,null,null,null,null,null,null,null,null,null,null,null,"","",null,null,null,null,null,null,{"$f":"IF(B28=\"\",\"\",'[1]Race Meeting Information'!$B$3 &\" - \" & B28)","v":""},null,null,null,null,null,null,null,null,null,null,null,null,null,null,null,null,null,null,null,null,null,null,null,null,null,null,null,null,null,null,null,null,null,null,null,null,null,null,null,null,null,"Team 38"]
[null,null,null,null,null,null,null,{"$f":"IF(A28=\"\",\"\",(VLOOKUP(B28,'[1]AFA Seed Times'!$B$3:$C$600,2,0)))","v":""},"Team 39","",null,null,null,null,null,null,null,null,null,null,null,null,null,null,null,null,null,"","",null,null,null,null,null,null,{"$f":"IF(B29=\"\",\"\",'[1]Race Meeting Information'!$B$3 &\" - \" & B29)","v":""},null,null,null,null,null,null,null,null,null,null,null,null,null,null,null,null,null,null,null,null,null,null,null,null,null,null,null,null,null,null,null,null,null,null,null,null,null,null,null,null,null,"Team 39"]
[null,null,null,null,null,null,null,{"$f":"IF(A29=\"\",\"\",(VLOOKUP(B29,'[1]AFA Seed Times'!$B$3:$C$600,2,0)))","v":""},"Team 40","",null,null,null,null,null,null,null,null,null,null,null,null,null,null,null,null,null,"","",null,null,null,null,null,null,{"$f":"IF(B30=\"\",\"\",'[1]Race Meeting Information'!$B$3 &\" - \" & B30)","v":""},null,null,null,null,null,null,null,null,null,null,null,null,null,null,null,null,null,null,null,null,null,null,null,null,null,null,null,null,null,null,null,null,null,null,null,null,null,null,null,null,null,"Team 40"]
[null,null,null,null,null,null,null,{"$f":"IF(A30=\"\",\"\",(VLOOKUP(B30,'[1]AFA Seed Times'!$B$3:$C$600,2,0)))","v":""},"Team 41","",null,null,null,null,null,null,null,null,null,null,null,null,null,null,null,null,null,"","",null,null,null,null,null,null,{"$f":"IF(B31=\"\",\"\",'[1]Race Meeting Information'!$B$3 &\" - \" & B31)","v":""},null,null,null,null,null,null,null,null,null,null,null,null,null,null,null,null,null,null,null,null,null,null,null,null,null,null,null,null,null,null,null,null,null,null,null,null,null,null,null,null,null,"Team 41"]
[null,null,null,null,null,null,null,{"$f":"IF(A31=\"\",\"\",(VLOOKUP(B31,'[1]AFA Seed Times'!$B$3:$C$600,2,0)))","v":""},"Team 42","",null,null,null,null,null,null,null,null,null,null,null,null,null,null,null,null,null,"","",null,null,null,null,null,null,{"$f":"IF(B32=\"\",\"\",'[1]Race Meeting Information'!$B$3 &\" - \" & B32)","v":""},null,null,null,null,null,null,null,null,null,null,null,null,null,null,null,null,null,null,null,null,null,null,null,null,null,null,null,null,null,null,null,null,null,null,null,null,null,null,null,null,null,"Team 42"]
[null,null,null,null,null,null,null,{"$f":"IF(A32=\"\",\"\",(VLOOKUP(B32,'[1]AFA Seed Times'!$B$3:$C$600,2,0)))","v":""},"Team 43","",null,null,null,null,null,null,null,null,null,null,null,null,null,null,null,null,null,"","",null,null,null,null,null,null,{"$f":"IF(B33=\"\",\"\",'[1]Race Meeting Information'!$B$3 &\" - \" & B33)","v":""},null,null,null,null,null,null,null,null,null,null,null,null,null,null,null,null,null,null,null,null,null,null,null,null,null,null,null,null,null,null,null,null,null,null,null,null,null,null,null,null,null,"Team 43"]
[null,null,null,null,null,null,null,{"$f":"IF(A33=\"\",\"\",(VLOOKUP(B33,'[1]AFA Seed Times'!$B$3:$C$600,2,0)))","v":""},"Team 44","",null,null,null,null,null,null,null,null,null,null,null,null,null,null,null,null,null,"","",null,null,null,null,null,null,{"$f":"IF(B34=\"\",\"\",'[1]Race Meeting Information'!$B$3 &\" - \" & B34)","v":""},null,null,null,null,null,null,null,null,null,null,null,null,null,null,null,null,null,null,null,null,null,null,null,null,null,null,null,null,null,null,null,null,null,null,null,null,null,null,null,null,null,"Team 44"]
[null,null,null,null,null,null,null,{"$f":"IF(A34=\"\",\"\",(VLOOKUP(B34,'[1]AFA Seed Times'!$B$3:$C$600,2,0)))","v":""},"Team 45",{"$f":"IF(B34=\"\",\"\",B34)","v":""},null,null,null,null,null,null,null,null,null,null,null,null,null,null,null,null,null,"","",null,null,null,null,null,null,{"$f":"IF(B35=\"\",\"\",'[1]Race Meeting Information'!$B$3 &\" - \" & B35)","v":""},null,null,null,null,null,null,null,null,null,null,null,null,null,null,null,null,null,null,null,null,null,null,null,null,null,null,null,null,null,null,null,null,null,null,null,null,null,null,null,null,null,"Team 45"]
[null,null,null,null,null,null,null,{"$f":"IF(A35=\"\",\"\",(VLOOKUP(B35,'[1]AFA Seed Times'!$B$3:$C$600,2,0)))","v":""},"Team 46","",null,null,null,null,null,null,null,null,null,null,null,null,null,null,null,null,null,"","",null,null,null,null,null,null,{"$f":"IF(B36=\"\",\"\",'[1]Race Meeting Information'!$B$3 &\" - \" & B36)","v":""},null,null,null,null,null,null,null,null,null,null,null,null,null,null,null,null,null,null,null,null,null,null,null,null,null,null,null,null,null,null,null,null,null,null,null,null,null,null,null,null,null,"Team 46"]
[null,null,null,null,null,null,null,{"$f":"IF(A36=\"\",\"\",(VLOOKUP(B36,'[1]AFA Seed Times'!$B$3:$C$600,2,0)))","v":""},"Team 47","",null,null,null,null,null,null,null,null,null,null,null,null,null,null,null,null,null,"","",null,null,null,null,null,null,{"$f":"IF(B37=\"\",\"\",'[1]Race Meeting Information'!$B$3 &\" - \" & B37)","v":""},null,null,null,null,null,null,null,null,null,null,null,null,null,null,null,null,null,null,null,null,null,null,null,null,null,null,null,null,null,null,null,null,null,null,null,null,null,null,null,null,null,"Team 47"]
[null,null,null,null,null,null,null,{"$f":"IF(A37=\"\",\"\",(VLOOKUP(B37,'[1]AFA Seed Times'!$B$3:$C$600,2,0)))","v":""},"Team 48","",null,null,null,null,null,null,null,null,null,null,null,null,null,null,null,null,null,"","",null,null,null,null,null,null,{"$f":"IF(B38=\"\",\"\",'[1]Race Meeting Information'!$B$3 &\" - \" & B38)","v":""},null,null,null,null,null,null,null,null,null,null,null,null,null,null,null,null,null,null,null,null,null,null,null,null,null,null,null,null,null,null,null,null,null,null,null,null,null,null,null,null,null,"Team 48"]
[null,null,null,null,null,null,null,{"$f":"IF(A38=\"\",\"\",(VLOOKUP(B38,'[1]AFA Seed Times'!$B$3:$C$600,2,0)))","v":""},"Team 49","",null,null,null,null,null,null,null,null,null,null,null,null,null,null,null,null,null,"","",null,null,null,null,null,null,{"$f":"IF(B39=\"\",\"\",'[1]Race Meeting Information'!$B$3 &\" - \" & B39)","v":""},null,null,null,null,null,null,null,null,null,null,null,null,null,null,null,null,null,null,null,null,null,null,null,null,null,null,null,null,null,null,null,null,null,null,null,null,null,null,null,null,null,"Team 49"]
[null,null,null,null,null,null,null,{"$f":"IF(A39=\"\",\"\",(VLOOKUP(B39,'[1]AFA Seed Times'!$B$3:$C$600,2,0)))","v":""},"Team 50","",null,null,null,null,null,null,null,null,null,null,null,null,null,null,null,null,null,"","",null,null,null,null,null,null,{"$f":"IF(B40=\"\",\"\",'[1]Race Meeting Information'!$B$3 &\" - \" & B40)","v":""},null,null,null,null,null,null,null,null,null,null,null,null,null,null,null,null,null,null,null,null,null,null,null,null,null,null,null,null,null,null,null,null,null,null,null,null,null,null,null,null,null,"Team 50"]
[null,null,null,null,null,null,null,{"$f":"IF(A40=\"\",\"\",(VLOOKUP(B40,'[1]AFA Seed Times'!$B$3:$C$600,2,0)))","v":""},"Team 51","",null,null,null,null,null,null,null,null,null,null,null,null,null,null,null,null,null,"","",null,null,null,null,null,null,{"$f":"IF(B41=\"\",\"\",'[1]Race Meeting Information'!$B$3 &\" - \" & B41)","v":""},null,null,null,null,null,null,null,null,null,null,null,null,null,null,null,null,null,null,null,null,null,null,null,null,null,null,null,null,null,null,null,null,null,null,null,null,null,null,null,null,null,"Team 51"]
[null,null,null,null,null,null,null,{"$f":"IF(A41=\"\",\"\",(VLOOKUP(B41,'[1]AFA Seed Times'!$B$3:$C$600,2,0)))","v":""},"Team 52","",null,null,null,null,null,null,null,null,null,null,null,null,null,null,null,null,null,"","",null,null,null,null,null,null,{"$f":"IF(B42=\"\",\"\",'[1]Race Meeting Information'!$B$3 &\" - \" & B42)","v":""},null,null,null,null,null,null,null,null,null,null,null,null,null,null,null,null,null,null,null,null,null,null,null,null,null,null,null,null,null,null,null,null,null,null,null,null,null,null,null,null,null,"Team 52"]
[null,null,null,null,null,null,null,{"$f":"IF(A42=\"\",\"\",(VLOOKUP(B42,'[1]AFA Seed Times'!$B$3:$C$600,2,0)))","v":""},"Team 53","",null,null,null,null,null,null,null,null,null,null,null,null,null,null,null,null,null,"","",null,null,null,null,null,null,{"$f":"IF(B43=\"\",\"\",'[1]Race Meeting Information'!$B$3 &\" - \" & B43)","v":""},null,null,null,null,null,null,null,null,null,null,null,null,null,null,null,null,null,null,null,null,null,null,null,null,null,null,null,null,null,null,null,null,null,null,null,null,null,null,null,null,null,"Team 53"]
[null,null,null,null,null,null,null,{"$f":"IF(A43=\"\",\"\",(VLOOKUP(B43,'[1]AFA Seed Times'!$B$3:$C$600,2,0)))","v":""},"Team 54","",null,null,null,null,null,null,null,null,null,null,null,null,null,null,null,null,null,"","",null,null,null,null,null,null,{"$f":"IF(B44=\"\",\"\",'[1]Race Meeting Information'!$B$3 &\" - \" & B44)","v":""},null,null,null,null,null,null,null,null,null,null,null,null,null,null,null,null,null,null,null,null,null,null,null,null,null,null,null,null,null,null,null,null,null,null,null,null,null,null,null,null,null,"Team 54"]
[null,null,null,null,null,null,null,{"$f":"IF(A44=\"\",\"\",(VLOOKUP(B44,'[1]AFA Seed Times'!$B$3:$C$600,2,0)))","v":""},"Team 55","",null,null,null,null,null,null,null,null,null,null,null,null,null,null,null,null,null,"","",null,null,null,null,null,null,{"$f":"IF(B45=\"\",\"\",'[1]Race Meeting Information'!$B$3 &\" - \" & B45)","v":""},null,null,null,null,null,null,null,null,null,null,null,null,null,null,null,null,null,null,null,null,null,null,null,null,null,null,null,null,null,null,null,null,null,null,null,null,null,null,null,null,null,"Team 55"]
[null,null,null,null,null,null,null,{"$f":"IF(A45=\"\",\"\",(VLOOKUP(B45,'[1]AFA Seed Times'!$B$3:$C$600,2,0)))","v":""},"Team 56","",null,null,null,null,null,null,null,null,null,null,null,null,null,null,null,null,null,"","",null,null,null,null,null,null,{"$f":"IF(B46=\"\",\"\",'[1]Race Meeting Information'!$B$3 &\" - \" & B46)","v":""},null,null,null,null,null,null,null,null,null,null,null,null,null,null,null,null,null,null,null,null,null,null,null,null,null,null,null,null,null,null,null,null,null,null,null,null,null,null,null,null,null,"Team 56"]
[null,null,null,null,null,null,null,{"$f":"IF(A46=\"\",\"\",(VLOOKUP(B46,'[1]AFA Seed Times'!$B$3:$C$600,2,0)))","v":""},"Team 57","",null,null,null,null,null,null,null,null,null,null,null,null,null,null,null,null,null,"","",null,null,null,null,null,null,{"$f":"IF(B47=\"\",\"\",'[1]Race Meeting Information'!$B$3 &\" - \" & B47)","v":""},null,null,null,null,null,null,null,null,null,null,null,null,null,null,null,null,null,null,null,null,null,null,null,null,null,null,null,null,null,null,null,null,null,null,null,null,null,null,null,null,null,"Team 57"]
[null,null,null,null,null,null,null,{"$f":"IF(A47=\"\",\"\",(VLOOKUP(B47,'[1]AFA Seed Times'!$B$3:$C$600,2,0)))","v":""},"Team 58","",null,null,null,null,null,null,null,null,null,null,null,null,null,null,null,null,null,"","",null,null,null,null,null,null,{"$f":"IF(B48=\"\",\"\",'[1]Race Meeting Information'!$B$3 &\" - \" & B48)","v":""},null,null,null,null,null,null,null,null,null,null,null,null,null,null,null,null,null,null,null,null,null,null,null,null,null,null,null,null,null,null,null,null,null,null,null,null,null,null,null,null,null,"Team 58"]
[null,null,null,null,null,null,null,{"$f":"IF(A48=\"\",\"\",(VLOOKUP(B48,'[1]AFA Seed Times'!$B$3:$C$600,2,0)))","v":""},"Team 59","",null,null,null,null,null,null,null,null,null,null,null,null,null,null,null,null,null,"","",null,null,null,null,null,null,{"$f":"IF(B49=\"\",\"\",'[1]Race Meeting Information'!$B$3 &\" - \" & B49)","v":""},null,null,null,null,null,null,null,null,null,null,null,null,null,null,null,null,null,null,null,null,null,null,null,null,null,null,null,null,null,null,null,null,null,null,null,null,null,null,null,null,null,"Team 59"]
[null,null,null,null,null,null,null,{"$f":"IF(A49=\"\",\"\",(VLOOKUP(B49,'[1]AFA Seed Times'!$B$3:$C$600,2,0)))","v":""},"Team 60","",null,null,null,null,null,null,null,null,null,null,null,null,null,null,null,null,null,"","",null,null,null,null,null,null,{"$f":"IF(B50=\"\",\"\",'[1]Race Meeting Information'!$B$3 &\" - \" & B50)","v":""},null,null,null,null,null,null,null,null,null,null,null,null,null,null,null,null,null,null,null,null,null,null,null,null,null,null,null,null,null,null,null,null,null,null,null,null,null,null,null,null,null,"Team 60"]
[null,null,null,null,null,null,null,{"$f":"IF(A50=\"\",\"\",(VLOOKUP(B50,'[1]AFA Seed Times'!$B$3:$C$600,2,0)))","v":""},"Team 61","",null,null,null,null,null,null,null,null,null,null,null,null,null,null,null,null,null,"","",null,null,null,null,null,null,{"$f":"IF(B51=\"\",\"\",'[1]Race Meeting Information'!$B$3 &\" - \" & B51)","v":""},null,null,null,null,null,null,null,null,null,null,null,null,null,null,null,null,null,null,null,null,null,null,null,null,null,null,null,null,null,null,null,null,null,null,null,null,null,null,null,null,null,"Team 61"]
[null,null,null,null,null,null,null,{"$f":"IF(A51=\"\",\"\",(VLOOKUP(B51,'[1]AFA Seed Times'!$B$3:$C$600,2,0)))","v":""},"Team 62","",null,null,null,null,null,null,null,null,null,null,null,null,null,null,null,null,null,"","",null,null,null,null,null,null,{"$f":"IF(B52=\"\",\"\",'[1]Race Meeting Information'!$B$3 &\" - \" & B52)","v":""},null,null,null,null,null,null,null,null,null,null,null,null,null,null,null,null,null,null,null,null,null,null,null,null,null,null,null,null,null,null,null,null,null,null,null,null,null,null,null,null,null,"Team 62"]
[null,null,null,null,null,null,null,{"$f":"IF(A52=\"\",\"\",(VLOOKUP(B52,'[1]AFA Seed Times'!$B$3:$C$600,2,0)))","v":""},"Team 63","",null,null,null,null,null,null,null,null,null,null,null,null,null,null,null,null,null,"","",null,null,null,null,null,null,{"$f":"IF(B53=\"\",\"\",'[1]Race Meeting Information'!$B$3 &\" - \" & B53)","v":""},null,null,null,null,null,null,null,null,null,null,null,null,null,null,null,null,null,null,null,null,null,null,null,null,null,null,null,null,null,null,null,null,null,null,null,null,null,null,null,null,null,"Team 63"]
[null,null,null,null,null,null,null,{"$f":"IF(A53=\"\",\"\",(VLOOKUP(B53,'[1]AFA Seed Times'!$B$3:$C$600,2,0)))","v":""},"Team 64","",null,null,null,null,null,null,null,null,null,null,null,null,null,null,null,null,null,{"$f":"IF(A54=\"\",\"\",BZ54)","v":""},{"$f":"IF(B54=\"\",\"\",B54)","v":""},null,null,null,null,null,null,{"$f":"IF(B54=\"\",\"\",'[1]Race Meeting Information'!$B$3 &\" - \" & B54)","v":""},null,null,null,null,null,null,null,null,null,null,null,null,null,null,null,null,null,null,null,null,null,null,null,null,null,null,null,null,null,null,null,null,null,null,null,null,null,null,null,null,null,"Team 64"]
[null,null,null,null,null,null,null,{"$f":"IF(A54=\"\",\"\",(VLOOKUP(B54,'[1]AFA Seed Times'!$B$3:$C$600,2,0)))","v":""},"Team 65",{"$f":"IF(B54=\"\",\"\",B54)","v":""},null,null,null,null,null,null,null,null,null,null,null,null,null,null,null,null,null,"","",null,null,null,null,null,null,{"$f":"IF(B55=\"\",\"\",'[1]Race Meeting Information'!$B$3 &\" - \" & B55)","v":""},null,null,null,null,null,null,null,null,null,null,null,null,null,null,null,null,null,null,null,null,null,null,null,null,null,null,null,null,null,null,null,null,null,null,null,null,null,null,null,null,null,"Team 65"]
[null,null,null,null,null,null,null,{"$f":"IF(A55=\"\",\"\",(VLOOKUP(B55,'[1]AFA Seed Times'!$B$3:$C$600,2,0)))","v":""},"Team 66","",null,null,null,null,null,null,null,null,null,null,null,null,null,null,null,null,null,"","",null,null,null,null,null,null,{"$f":"IF(B56=\"\",\"\",'[1]Race Meeting Information'!$B$3 &\" - \" & B56)","v":""},null,null,null,null,null,null,null,null,null,null,null,null,null,null,null,null,null,null,null,null,null,null,null,null,null,null,null,null,null,null,null,null,null,null,null,null,null,null,null,null,null,"Team 66"]
[null,null,null,null,null,null,null,{"$f":"IF(A56=\"\",\"\",(VLOOKUP(B56,'[1]AFA Seed Times'!$B$3:$C$600,2,0)))","v":""},"Team 67","",null,null,null,null,null,null,null,null,null,null,null,null,null,null,null,null,null,"","",null,null,null,null,null,null,{"$f":"IF(B57=\"\",\"\",'[1]Race Meeting Information'!$B$3 &\" - \" & B57)","v":""},null,null,null,null,null,null,null,null,null,null,null,null,null,null,null,null,null,null,null,null,null,null,null,null,null,null,null,null,null,null,null,null,null,null,null,null,null,null,null,null,null,"Team 67"]
[null,null,null,null,null,null,null,{"$f":"IF(A57=\"\",\"\",(VLOOKUP(B57,'[1]AFA Seed Times'!$B$3:$C$600,2,0)))","v":""},"Team 68","",null,null,null,null,null,null,null,null,null,null,null,null,null,null,null,null,null,"","",null,null,null,null,null,null,{"$f":"IF(B58=\"\",\"\",'[1]Race Meeting Information'!$B$3 &\" - \" & B58)","v":""},null,null,null,null,null,null,null,null,null,null,null,null,null,null,null,null,null,null,null,null,null,null,null,null,null,null,null,null,null,null,null,null,null,null,null,null,null,null,null,null,null,"Team 68"]
[null,null,null,null,null,null,null,{"$f":"IF(A58=\"\",\"\",(VLOOKUP(B58,'[1]AFA Seed Times'!$B$3:$C$600,2,0)))","v":""},"Team 69","",null,null,null,null,null,null,null,null,null,null,null,null,null,null,null,null,null,"","",null,null,null,null,null,null,{"$f":"IF(B59=\"\",\"\",'[1]Race Meeting Information'!$B$3 &\" - \" & B59)","v":""},null,null,null,null,null,null,null,null,null,null,null,null,null,null,null,null,null,null,null,null,null,null,null,null,null,null,null,null,null,null,null,null,null,null,null,null,null,null,null,null,null,"Team 69"]
[null,null,null,null,null,null,null,{"$f":"IF(A59=\"\",\"\",(VLOOKUP(B59,'[1]AFA Seed Times'!$B$3:$C$600,2,0)))","v":""},"Team 70","",null,null,null,null,null,null,null,null,null,null,null,null,null,null,null,null,null,"","",null,null,null,null,null,null,{"$f":"IF(B60=\"\",\"\",'[1]Race Meeting Information'!$B$3 &\" - \" & B60)","v":""},null,null,null,null,null,null,null,null,null,null,null,null,null,null,null,null,null,null,null,null,null,null,null,null,null,null,null,null,null,null,null,null,null,null,null,null,null,null,null,null,null,"Team 70"]
[null,null,null,null,null,null,null,{"$f":"IF(A60=\"\",\"\",(VLOOKUP(B60,'[1]AFA Seed Times'!$B$3:$C$600,2,0)))","v":""},"Team 71","",null,null,null,null,null,null,null,null,null,null,null,null,null,null,null,null,null,"","",null,null,null,null,null,null,{"$f":"IF(B61=\"\",\"\",'[1]Race Meeting Information'!$B$3 &\" - \" & B61)","v":""},null,null,null,null,null,null,null,null,null,null,null,null,null,null,null,null,null,null,null,null,null,null,null,null,null,null,null,null,null,null,null,null,null,null,null,null,null,null,null,null,null,"Team 71"]
[null,null,null,null,null,null,null,{"$f":"IF(A61=\"\",\"\",(VLOOKUP(B61,'[1]AFA Seed Times'!$B$3:$C$600,2,0)))","v":""},"Team 72","",null,null,null,null,null,null,null,null,null,null,null,null,null,null,null,null,null,"","",null,null,null,null,null,null,{"$f":"IF(B62=\"\",\"\",'[1]Race Meeting Information'!$B$3 &\" - \" & B62)","v":""},null,null,null,null,null,null,null,null,null,null,null,null,null,null,null,null,null,null,null,null,null,null,null,null,null,null,null,null,null,null,null,null,null,null,null,null,null,null,null,null,null,"Team 72"]
[null,null,null,null,null,null,null,{"$f":"IF(A62=\"\",\"\",(VLOOKUP(B62,'[1]AFA Seed Times'!$B$3:$C$600,2,0)))","v":""},"Team 73","",null,null,null,null,null,null,null,null,null,null,null,null,null,null,null,null,null,"","",null,null,null,null,null,null,{"$f":"IF(B63=\"\",\"\",'[1]Race Meeting Information'!$B$3 &\" - \" & B63)","v":""},null,null,null,null,null,null,null,null,null,null,null,null,null,null,null,null,null,null,null,null,null,null,null,null,null,null,null,null,null,null,null,null,null,null,null,null,null,null,null,null,null,"Team 73"]
[null,null,null,null,null,null,null,{"$f":"IF(A63=\"\",\"\",(VLOOKUP(B63,'[1]AFA Seed Times'!$B$3:$C$600,2,0)))","v":""},"Team 74","",null,null,null,null,null,null,null,null,null,null,null,null,null,null,null,null,null,"","",null,null,null,null,null,null,{"$f":"IF(B64=\"\",\"\",'[1]Race Meeting Information'!$B$3 &\" - \" & B64)","v":""},null,null,null,null,null,null,null,null,null,null,null,null,null,null,null,null,null,null,null,null,null,null,null,null,null,null,null,null,null,null,null,null,null,null,null,null,null,null,null,null,null,"Team 74"]
[null,null,null,null,null,null,null,{"$f":"IF(A64=\"\",\"\",(VLOOKUP(B64,'[1]AFA Seed Times'!$B$3:$C$600,2,0)))","v":""},"Team 75","",null,null,null,null,null,null,null,null,null,null,null,null,null,null,null,null,null,"","",null,null,null,null,null,null,{"$f":"IF(B65=\"\",\"\",'[1]Race Meeting Information'!$B$3 &\" - \" & B65)","v":""},null,null,null,null,null,null,null,null,null,null,null,null,null,null,null,null,null,null,null,null,null,null,null,null,null,null,null,null,null,null,null,null,null,null,null,null,null,null,null,null,null,"Team 75"]
[null,null,null,null,null,null,null,{"$f":"IF(A65=\"\",\"\",(VLOOKUP(B65,'[1]AFA Seed Times'!$B$3:$C$600,2,0)))","v":""},"Team 76","",null,null,null,null,null,null,null,null,null,null,null,null,null,null,null,null,null,"","",null,null,null,null,null,null,{"$f":"IF(B66=\"\",\"\",'[1]Race Meeting Information'!$B$3 &\" - \" & B66)","v":""},null,null,null,null,null,null,null,null,null,null,null,null,null,null,null,null,null,null,null,null,null,null,null,null,null,null,null,null,null,null,null,null,null,null,null,null,null,null,null,null,null,"Team 76"]
[null,null,null,null,null,null,null,{"$f":"IF(A66=\"\",\"\",(VLOOKUP(B66,'[1]AFA Seed Times'!$B$3:$C$600,2,0)))","v":""},"Team 77","",null,null,null,null,null,null,null,null,null,null,null,null,null,null,null,null,null,"","",null,null,null,null,null,null,{"$f":"IF(B67=\"\",\"\",'[1]Race Meeting Information'!$B$3 &\" - \" & B67)","v":""},null,null,null,null,null,null,null,null,null,null,null,null,null,null,null,null,null,null,null,null,null,null,null,null,null,null,null,null,null,null,null,null,null,null,null,null,null,null,null,null,null,"Team 77"]
[null,null,null,null,null,null,null,{"$f":"IF(A67=\"\",\"\",(VLOOKUP(B67,'[1]AFA Seed Times'!$B$3:$C$600,2,0)))","v":""},"Team 78","",null,null,null,null,null,null,null,null,null,null,null,null,null,null,null,null,null,"","",null,null,null,null,null,null,{"$f":"IF(B68=\"\",\"\",'[1]Race Meeting Information'!$B$3 &\" - \" & B68)","v":""},null,null,null,null,null,null,null,null,null,null,null,null,null,null,null,null,null,null,null,null,null,null,null,null,null,null,null,null,null,null,null,null,null,null,null,null,null,null,null,null,null,"Team 78"]
[null,null,null,null,null,null,null,{"$f":"IF(A68=\"\",\"\",(VLOOKUP(B68,'[1]AFA Seed Times'!$B$3:$C$600,2,0)))","v":""},"Team 79","",null,null,null,null,null,null,null,null,null,null,null,null,null,null,null,null,null,"","",null,null,null,null,null,null,{"$f":"IF(B69=\"\",\"\",'[1]Race Meeting Information'!$B$3 &\" - \" & B69)","v":""},null,null,null,null,null,null,null,null,null,null,null,null,null,null,null,null,null,null,null,null,null,null,null,null,null,null,null,null,null,null,null,null,null,null,null,null,null,null,null,null,null,"Team 79"]
[null,null,null,null,null,null,null,{"$f":"IF(A69=\"\",\"\",(VLOOKUP(B69,'[1]AFA Seed Times'!$B$3:$C$600,2,0)))","v":""},"Team 80","",null,null,null,null,null,null,null,null,null,null,null,null,null,null,null,null,null,"","",null,null,null,null,null,null,{"$f":"IF(B70=\"\",\"\",'[1]Race Meeting Information'!$B$3 &\" - \" & B70)","v":""},null,null,null,null,null,null,null,null,null,null,null,null,null,null,null,null,null,null,null,null,null,null,null,null,null,null,null,null,null,null,null,null,null,null,null,null,null,null,null,null,null,"Team 80"]
[null,null,null,null,null,null,null,{"$f":"IF(A70=\"\",\"\",(VLOOKUP(B70,'[1]AFA Seed Times'!$B$3:$C$600,2,0)))","v":""},"Team 81","",null,null,null,null,null,null,null,null,null,null,null,null,null,null,null,null,null,"","",null,null,null,null,null,null,{"$f":"IF(B71=\"\",\"\",'[1]Race Meeting Information'!$B$3 &\" - \" & B71)","v":""},null,null,null,null,null,null,null,null,null,null,null,null,null,null,null,null,null,null,null,null,null,null,null,null,null,null,null,null,null,null,null,null,null,null,null,null,null,null,null,null,null,"Team 81"]
[null,null,null,null,null,null,null,{"$f":"IF(A71=\"\",\"\",(VLOOKUP(B71,'[1]AFA Seed Times'!$B$3:$C$600,2,0)))","v":""},"Team 82","",null,null,null,null,null,null,null,null,null,null,null,null,null,null,null,null,null,"","",null,null,null,null,null,null,{"$f":"IF(B72=\"\",\"\",'[1]Race Meeting Information'!$B$3 &\" - \" & B72)","v":""},null,null,null,null,null,null,null,null,null,null,null,null,null,null,null,null,null,null,null,null,null,null,null,null,null,null,null,null,null,null,null,null,null,null,null,null,null,null,null,null,null,"Team 82"]
[null,null,null,null,null,null,null,{"$f":"IF(A72=\"\",\"\",(VLOOKUP(B72,'[1]AFA Seed Times'!$B$3:$C$600,2,0)))","v":""},"Team 83","",null,null,null,null,null,null,null,null,null,null,null,null,null,null,null,null,null,"","",null,null,null,null,null,null,{"$f":"IF(B73=\"\",\"\",'[1]Race Meeting Information'!$B$3 &\" - \" & B73)","v":""},null,null,null,null,null,null,null,null,null,null,null,null,null,null,null,null,null,null,null,null,null,null,null,null,null,null,null,null,null,null,null,null,null,null,null,null,null,null,null,null,null,"Team 83"]
[null,null,null,null,null,null,null,{"$f":"IF(A73=\"\",\"\",(VLOOKUP(B73,'[1]AFA Seed Times'!$B$3:$C$600,2,0)))","v":""},"Team 84","",null,null,null,null,null,null,null,null,null,null,null,null,null,null,null,null,null,"","",null,null,null,null,null,null,{"$f":"IF(B74=\"\",\"\",'[1]Race Meeting Information'!$B$3 &\" - \" & B74)","v":""},null,null,null,null,null,null,null,null,null,null,null,null,null,null,null,null,null,null,null,null,null,null,null,null,null,null,null,null,null,null,null,null,null,null,null,null,null,null,null,null,null,"Team 84"]
[null,null,null,null,null,null,null,{"$f":"IF(A74=\"\",\"\",(VLOOKUP(B74,'[1]AFA Seed Times'!$B$3:$C$600,2,0)))","v":""},"Team 85","",null,null,null,null,null,null,null,null,null,null,null,null,null,null,null,null,null,"","",null,null,null,null,null,null,{"$f":"IF(B75=\"\",\"\",'[1]Race Meeting Information'!$B$3 &\" - \" & B75)","v":""},null,null,null,null,null,null,null,null,null,null,null,null,null,null,null,null,null,null,null,null,null,null,null,null,null,null,null,null,null,null,null,null,null,null,null,null,null,null,null,null,null,"Team 85"]
[null,null,null,null,null,null,null,{"$f":"IF(A75=\"\",\"\",(VLOOKUP(B75,'[1]AFA Seed Times'!$B$3:$C$600,2,0)))","v":""},"Team 86","",null,null,null,null,null,null,null,null,null,null,null,null,null,null,null,null,null,"","",null,null,null,null,null,null,{"$f":"IF(B76=\"\",\"\",'[1]Race Meeting Information'!$B$3 &\" - \" & B76)","v":""},null,null,null,null,null,null,null,null,null,null,null,null,null,null,null,null,null,null,null,null,null,null,null,null,null,null,null,null,null,null,null,null,null,null,null,null,null,null,null,null,null,"Team 86"]
[null,null,null,null,null,null,null,{"$f":"IF(A76=\"\",\"\",(VLOOKUP(B76,'[1]AFA Seed Times'!$B$3:$C$600,2,0)))","v":""},"Team 87","",null,null,null,null,null,null,null,null,null,null,null,null,null,null,null,null,null,"","",null,null,null,null,null,null,{"$f":"IF(B77=\"\",\"\",'[1]Race Meeting Information'!$B$3 &\" - \" & B77)","v":""},null,null,null,null,null,null,null,null,null,null,null,null,null,null,null,null,null,null,null,null,null,null,null,null,null,null,null,null,null,null,null,null,null,null,null,null,null,null,null,null,null,"Team 87"]
[null,null,null,null,null,null,null,{"$f":"IF(A77=\"\",\"\",(VLOOKUP(B77,'[1]AFA Seed Times'!$B$3:$C$600,2,0)))","v":""},"Team 88","",null,null,null,null,null,null,null,null,null,null,null,null,null,null,null,null,null,"","",null,null,null,null,null,null,{"$f":"IF(B78=\"\",\"\",'[1]Race Meeting Information'!$B$3 &\" - \" & B78)","v":""},null,null,null,null,null,null,null,null,null,null,null,null,null,null,null,null,null,null,null,null,null,null,null,null,null,null,null,null,null,null,null,null,null,null,null,null,null,null,null,null,null,"Team 88"]
[null,null,null,null,null,null,null,{"$f":"IF(A78=\"\",\"\",(VLOOKUP(B78,'[1]AFA Seed Times'!$B$3:$C$600,2,0)))","v":""},"Team 89","",null,null,null,null,null,null,null,null,null,null,null,null,null,null,null,null,null,"","",null,null,null,null,null,null,{"$f":"IF(B79=\"\",\"\",'[1]Race Meeting Information'!$B$3 &\" - \" & B79)","v":""},null,null,null,null,null,null,null,null,null,null,null,null,null,null,null,null,null,null,null,null,null,null,null,null,null,null,null,null,null,null,null,null,null,null,null,null,null,null,null,null,null,"Team 89"]
[null,null,null,null,null,null,null,{"$f":"IF(A79=\"\",\"\",(VLOOKUP(B79,'[1]AFA Seed Times'!$B$3:$C$600,2,0)))","v":""},"Team 90","",null,null,null,null,null,null,null,null,null,null,null,null,null,null,null,null,null,"","",null,null,null,null,null,null,{"$f":"IF(B80=\"\",\"\",'[1]Race Meeting Information'!$B$3 &\" - \" & B80)","v":""},null,null,null,null,null,null,null,null,null,null,null,null,null,null,null,null,null,null,null,null,null,null,null,null,null,null,null,null,null,null,null,null,null,null,null,null,null,null,null,null,null,"Team 90"]
[null,null,null,null,null,null,null,{"$f":"IF(A80=\"\",\"\",(VLOOKUP(B80,'[1]AFA Seed Times'!$B$3:$C$600,2,0)))","v":""},"Team 91","",null,null,null,null,null,null,null,null,null,null,null,null,null,null,null,null,null,"","",null,null,null,null,null,null,{"$f":"IF(B81=\"\",\"\",'[1]Race Meeting Information'!$B$3 &\" - \" & B81)","v":""},null,null,null,null,null,null,null,null,null,null,null,null,null,null,null,null,null,null,null,null,null,null,null,null,null,null,null,null,null,null,null,null,null,null,null,null,null,null,null,null,null,"Team 91"]
[null,null,null,null,null,null,null,{"$f":"IF(A81=\"\",\"\",(VLOOKUP(B81,'[1]AFA Seed Times'!$B$3:$C$600,2,0)))","v":""},"Team 92","",null,null,null,null,null,null,null,null,null,null,null,null,null,null,null,null,null,"","",null,null,null,null,null,null,{"$f":"IF(B82=\"\",\"\",'[1]Race Meeting Information'!$B$3 &\" - \" & B82)","v":""},null,null,null,null,null,null,null,null,null,null,null,null,null,null,null,null,null,null,null,null,null,null,null,null,null,null,null,null,null,null,null,null,null,null,null,null,null,null,null,null,null,"Team 92"]
[null,null,null,null,null,null,null,{"$f":"IF(A82=\"\",\"\",(VLOOKUP(B82,'[1]AFA Seed Times'!$B$3:$C$600,2,0)))","v":""},"Team 93","",null,null,null,null,null,null,null,null,null,null,null,null,null,null,null,null,null,"","",null,null,null,null,null,null,{"$f":"IF(B83=\"\",\"\",'[1]Race Meeting Information'!$B$3 &\" - \" & B83)","v":""},null,null,null,null,null,null,null,null,null,null,null,null,null,null,null,null,null,null,null,null,null,null,null,null,null,null,null,null,null,null,null,null,null,null,null,null,null,null,null,null,null,"Team 93"]
[null,null,null,null,null,null,null,{"$f":"IF(A83=\"\",\"\",(VLOOKUP(B83,'[1]AFA Seed Times'!$B$3:$C$600,2,0)))","v":""},"Team 94","",null,null,null,null,null,null,null,null,null,null,null,null,null,null,null,null,null,"","",null,null,null,null,null,null,{"$f":"IF(B84=\"\",\"\",'[1]Race Meeting Information'!$B$3 &\" - \" & B84)","v":""},null,null,null,null,null,null,null,null,null,null,null,null,null,null,null,null,null,null,null,null,null,null,null,null,null,null,null,null,null,null,null,null,null,null,null,null,null,null,null,null,null,"Team 94"]
[null,null,null,null,null,null,null,{"$f":"IF(A84=\"\",\"\",(VLOOKUP(B84,'[1]AFA Seed Times'!$B$3:$C$600,2,0)))","v":""},"Team 95","",null,null,null,null,null,null,null,null,null,null,null,null,null,null,null,null,null,"","",null,null,null,null,null,null,{"$f":"IF(B85=\"\",\"\",'[1]Race Meeting Information'!$B$3 &\" - \" & B85)","v":""},null,null,null,null,null,null,null,null,null,null,null,null,null,null,null,null,null,null,null,null,null,null,null,null,null,null,null,null,null,null,null,null,null,null,null,null,null,null,null,null,null,"Team 95"]
[null,null,null,null,null,null,null,{"$f":"IF(A85=\"\",\"\",(VLOOKUP(B85,'[1]AFA Seed Times'!$B$3:$C$600,2,0)))","v":""},"Team 96","",null,null,null,null,null,null,null,null,null,null,null,null,null,null,null,null,null,"","",null,null,null,null,null,null,{"$f":"IF(B86=\"\",\"\",'[1]Race Meeting Information'!$B$3 &\" - \" & B86)","v":""},null,null,null,null,null,null,null,null,null,null,null,null,null,null,null,null,null,null,null,null,null,null,null,null,null,null,null,null,null,null,null,null,null,null,null,null,null,null,null,null,null,"Team 96"]
[null,null,null,null,null,null,null,{"$f":"IF(A86=\"\",\"\",(VLOOKUP(B86,'[1]AFA Seed Times'!$B$3:$C$600,2,0)))","v":""},"Team 97","",null,null,null,null,null,null,null,null,null,null,null,null,null,null,null,null,null,"","",null,null,null,null,null,null,{"$f":"IF(B87=\"\",\"\",'[1]Race Meeting Information'!$B$3 &\" - \" & B87)","v":""},null,null,null,null,null,null,null,null,null,null,null,null,null,null,null,null,null,null,null,null,null,null,null,null,null,null,null,null,null,null,null,null,null,null,null,null,null,null,null,null,null,"Team 97"]
[null,null,null,null,null,null,null,{"$f":"IF(A87=\"\",\"\",(VLOOKUP(B87,'[1]AFA Seed Times'!$B$3:$C$600,2,0)))","v":""},"Team 98","",null,null,null,null,null,null,null,null,null,null,null,null,null,null,null,null,null,"","",null,null,null,null,null,null,{"$f":"IF(B88=\"\",\"\",'[1]Race Meeting Information'!$B$3 &\" - \" & B88)","v":""},null,null,null,null,null,null,null,null,null,null,null,null,null,null,null,null,null,null,null,null,null,null,null,null,null,null,null,null,null,null,null,null,null,null,null,null,null,null,null,null,null,"Team 98"]
[null,null,null,null,null,null,null,{"$f":"IF(A88=\"\",\"\",(VLOOKUP(B88,'[1]AFA Seed Times'!$B$3:$C$600,2,0)))","v":""},"Team 99","",null,null,null,null,null,null,null,null,null,null,null,null,null,null,null,null,null,"","",null,null,null,null,null,null,{"$f":"IF(B89=\"\",\"\",'[1]Race Meeting Information'!$B$3 &\" - \" & B89)","v":""},null,null,null,null,null,null,null,null,null,null,null,null,null,null,null,null,null,null,null,null,null,null,null,null,null,null,null,null,null,null,null,null,null,null,null,null,null,null,null,null,null,"Team 99"]
[null,null,null,null,null,null,null,{"$f":"IF(A89=\"\",\"\",(VLOOKUP(B89,'[1]AFA Seed Times'!$B$3:$C$600,2,0)))","v":""},"Team 100","",null,null,null,null,null,null,null,null,null,null,null,null,null,null,null,null,null,"","",null,null,null,null,null,null,{"$f":"IF(B90=\"\",\"\",'[1]Race Meeting Information'!$B$3 &\" - \" & B90)","v":""},null,null,null,null,null,null,null,null,null,null,null,null,null,null,null,null,null,null,null,null,null,null,null,null,null,null,null,null,null,null,null,null,null,null,null,null,null,null,null,null,null,"Team 100"]
[null,null,null,null,null,null,null,{"$f":"IF(A90=\"\",\"\",VLOOKUP(B90,'[1]AFA Seed Times'!B103:C700,2))","v":""},"Team 101","",null,null,null,null,null,null,null,null,null,null,null,null,null,null,null,null,null,{"$f":"IF(A90=\"\",\"\",BZ90)","v":""},"",null,null,null,null,null,null,null,null,null,null,null,null,null,null,null,null,null,null,null,null,null,null,null,null,null,null,null,null,null,null,null,null,null,null,null,null,null,null,null,null,null,null,null,null,null,null,null,null,"Team 101"]

{"sheet":"Approved Running Order","index":1,"n_rows":58,"n_cols":23,"rows_kept":58,"cut":false,"hidden":false,"merged":[[0,8,0,13]]}
["Race #","Division","Left Lane","Right Lane",null,null,null,null,"Race Numbers",null,null,null,null,null,null,"Min Gap","Max Gap","Avg Gap"]
[1,"Div 3","Wiggly Woofers","Munchkins",null,null,"Div 1","Norwest Thunderdogs 1",2,14,21,30,41,48,null,7,12,9.1999999999999993,{"$f":"+J2-I2","v":12},{"$f":"+K2-J2","v":7},9,11,7]
[2,"Div 1","Norwest Thunderdogs 1","Tsunami Bar Crushers",null,null,"Div 1","Tsunami Bar Crushers",2,12,22,30,39,50,null,8,11,9.6,{"$f":"+J3-I3","v":10},{"$f":"+K3-J3","v":10},{"$f":"+L3-K3","v":8},{"$f":"+M3-L3","v":9},{"$f":"+N3-M3","v":11}]
[3,"Div 2","Norwest Thunderdogs 8","Sydneysiders",null,null,"Div 1","Norwest Thunderdogs 4",5,12,21,32,39,48,null,7,11,8.6,7,9,11,7,9]
[4,"Div 2","Rocky Spuds","MAD Dash",null,null,"Div 1","Scallywag Scoundrels",5,14,22,32,41,50,null,8,10,9,9,8,10,9,9]
[5,"Div 1","Norwest Thunderdogs 4","Scallywag Scoundrels"]
[6,"Div 3","Munchkins","Havoc Hounds"]
[7,"Open 1","Thunderdog Stormchasers","MAD Flyers",null,null,"Div 2","Sydneysiders",3,13,23,31,40,52,null,8,12,9.8000000000000007,{"$f":"+J8-I8","v":10},{"$f":"+K8-J8","v":10},{"$f":"+L8-K8","v":8},{"$f":"+M8-L8","v":9},{"$f":"+N8-M8","v":12}]
[8,"Open 2","Scallywag Terrors","Open Ocean",null,null,"Div 2","Norwest Thunderdogs 8",3,15,23,33,42,51,null,8,12,9.6,{"$f":"+J9-I9","v":12},{"$f":"+K9-J9","v":8},{"$f":"+L9-K9","v":10},{"$f":"+M9-L9","v":9},{"$f":"+N9-M9","v":9}]
[9,"Open 2","Crate Escapers","Fast & Furious",null,null,"Div 2","Rocky Spuds",4,15,24,31,42,52,null,7,11,9.6,11,9,7,11,10]
[10,"Open 1","Thunderdog Tornado","Crossfire - SthX",null,null,"Div 2","MAD Dash",4,13,24,33,40,51,null,7,11,9.4,9,11,9,7,11]
[11,"Div 3","Havoc Hounds","Wiggly Woofers"]
[12,"Div 1","Tsunami Bar Crushers","Norwest Thunderdogs 4"]
[13,"Div 2","MAD Dash","Sydneysiders",null,null,"Div 3","Havoc Hounds",6,11,18,34,49,55,null,5,16,9.8000000000000007,{"$f":"+J14-I14","v":5},{"$f":"+K14-J14","v":7},{"$f":"+L14-K14","v":16},{"$f":"+M14-L14","v":15},{"$f":"+N14-M14","v":6}]
[14,"Div 1","Scallywag Scoundrels","Norwest Thunderdogs 1",null,null,"Div 3","Wiggly Woofers",1,11,25,34,43,49,null,6,14,9.6,{"$f":"+J15-I15","v":10},{"$f":"+K15-J15","v":14},{"$f":"+L15-K15","v":9},{"$f":"+M15-L15","v":9},{"$f":"+N15-M15","v":6}]
[15,"Div 2","Rocky Spuds","Norwest Thunderdogs 8",null,null,"Div 3","Munchkins",1,6,18,25,43,55,null,5,18,10.8,5,12,7,18,12]
[16,"Open 2","Fast & Furious","Scallywag Terrors"]
[17,"Open 2","Open Ocean","Crate Escapers"]
[18,"Div 3","Havoc Hounds","Munchkins",null,null,"Open 1","Thunderdog Stormchasers",7,19,27,35,44,57,null,8,13,10,{"$f":"+J19-I19","v":12},{"$f":"+K19-J19","v":8},{"$f":"+L19-K19","v":8},{"$f":"+M19-L19","v":9},{"$f":"+N19-M19","v":13}]
[19,"Open 1","Thunderdog Stormchasers","Thunderdog Tornado",null,null,"Open 1","MAD Flyers",7,20,26,35,45,53,null,6,13,9.1999999999999993,13,6,9,10,8]
[20,"Open 1","Crossfire - SthX","MAD Flyers",null,null,"Open 1","Thunderdog Tornado",10,19,26,37,44,53,null,7,11,8.6,9,7,11,7,9]
[21,"Div 1","Norwest Thunderdogs 4","Norwest Thunderdogs 1",null,null,"Open 1","Crossfire - SthX",10,20,27,37,45,57,null,7,12,9.4,10,7,10,8,12]
[22,"Div 1","Scallywag Scoundrels","Tsunami Bar Crushers"]
[23,"Div 2","Sydneysiders","Norwest Thunderdogs 8"]
[24,"Div 2","MAD Dash","Rocky Spuds",null,null,"Open 2","Scallywag Terrors",8,16,29,36,46,54,null,7,13,9.1999999999999993,{"$f":"+J25-I25","v":8},{"$f":"+K25-J25","v":13},{"$f":"+L25-K25","v":7},{"$f":"+M25-L25","v":10},{"$f":"+N25-M25","v":8}]
[25,"Div 3","Wiggly Woofers","Munchkins",null,null,"Open 2","Open Ocean",8,17,28,36,47,56,null,8,11,9.6,9,11,8,11,9]
[26,"Open 1","MAD Flyers","Thunderdog Tornado",null,null,"Open 2","Crate Escapers",9,17,29,38,47,54,null,7,12,9,8,12,9,9,7]
[27,"Open 1","Crossfire - SthX","Thunderdog Stormchasers",null,null,"Open 2","Fast & Furious",9,16,28,38,46,56,null,7,12,9.4,7,12,10,8,10]
[28,"Open 2","Open Ocean","Fast & Furious"]
[29,"Open 2","Scallywag Terrors","Crate Escapers"]
[30,"Div 1","Tsunami Bar Crushers","Norwest Thunderdogs 1"]
[31,"Div 2","Rocky Spuds","Sydneysiders"]
[32,"Div 1","Scallywag Scoundrels","Norwest Thunderdogs 4"]
[33,"Div 2","MAD Dash","Norwest Thunderdogs 8"]
[34,"Div 3","Wiggly Woofers","Havoc Hounds"]
[35,"Open 1","MAD Flyers","Thunderdog Stormchasers"]
[36,"Open 2","Open Ocean","Scallywag Terrors"]
[37,"Open 1","Crossfire - SthX","Thunderdog Tornado"]
[38,"Open 2","Fast & Furious","Crate Escapers"]
[39,"Div 1","Norwest Thunderdogs 4","Tsunami Bar Crushers"]
[40,"Div 2","Sydneysiders","MAD Dash"]
[41,"Div 1","Norwest Thunderdogs 1","Scallywag Scoundrels"]
[42,"Div 2","Norwest Thunderdogs 8","Rocky Spuds"]
[43,"Div 3","Munchkins","Wiggly Woofers"]
[44,"Open 1","Thunderdog Tornado","Thunderdog Stormchasers"]
[45,"Open 1","MAD Flyers","Crossfire - SthX"]
[46,"Open 2","Scallywag Terrors","Fast & Furious"]
[47,"Open 2","Crate Escapers","Open Ocean"]
[48,"Div 1","Norwest Thunderdogs 1","Norwest Thunderdogs 4"]
[49,"Div 3","Havoc Hounds","Wiggly Woofers"]
[50,"Div 1","Tsunami Bar Crushers","Scallywag Scoundrels"]
[51,"Div 2","Norwest Thunderdogs 8","MAD Dash"]
[52,"Div 2","Sydneysiders","Rocky Spuds"]
[53,"Open 1","Thunderdog Tornado","MAD Flyers"]
[54,"Open 2","Crate Escapers","Scallywag Terrors"]
[55,"Div 3","Munchkins","Havoc Hounds"]
[56,"Open 2","Fast & Furious","Open Ocean"]
[57,"Open 1","Thunderdog Stormchasers","Crossfire - SthX"]